fUST/lending_fUST_20250506
["ID","MTS","AMOUNT","RATE_DAILY","PERIOD"]
[359997667,1746472240420,-1156.68,0.00025759,3]
[359997669,1746472240429,-578.34,0.00025759,3]
[359997671,1746472240438,-160.0,0.00025759,3]
[359997673,1746472240448,-421.83547488,0.00025759,3]
[359997675,1746472240458,-841.77443764,0.00025759,3]
[359997677,1746472240468,-12607.13495863,0.00025759,3]
[359997679,1746472240478,-160.0,0.00025759,3]
[359997681,1746472240487,-420.0,0.00025864,2]
[359997683,1746472240496,-420.0,0.00025865,2]
[359997685,1746472240506,-1582.64937728,0.0002589,2]
[359997687,1746472240515,-1641.47386708,0.00025934,14]
[359997689,1746472240525,-1680.0,0.00025983,2]
[359997691,1746472240534,-151.0,0.00026,7]
[359997693,1746472240543,-157.952697,0.00026,7]
[359997695,1746472240553,-364.99491622,0.00026,30]
[359997697,1746472240562,-160.0,0.00026119,2]
[359997699,1746472240571,-500.0,0.00026218,2]
[359997701,1746472240580,-1641.47386708,0.00026452,15]
[359997703,1746472240589,-5811.13987871,0.00026792,2]
[359997705,1746472240598,-1641.47386708,0.00026969,16]
[359997707,1746472240608,-10924.7931846,0.00026994,2]
[359997709,1746472240617,-635.43451999,0.00026994,2]
[359997711,1746472240626,-190.8,0.00027,3]
[359997713,1746472240635,-190.8,0.00027,3]
[359997715,1746472240644,-190.8,0.00027,3]
[359997717,1746472240655,-190.8,0.00027,3]
[359997719,1746472240664,-190.8,0.00027,3]
[359997721,1746472240674,-190.8,0.00027,3]
[359997723,1746472240683,-190.8,0.00027,3]
[359997725,1746472240692,-190.8,0.00027,3]
[359997727,1746472240702,-190.8,0.00027,3]
[359997729,1746472240711,-151.0,0.00027301,7]
[359997731,1746472240720,-165.179841,0.00027301,7]
[359997733,1746472240733,-165.179841,0.00027301,7]
[359997735,1746472240743,-151.0,0.00027321,7]
[359997737,1746472240752,-165.179841,0.00027321,7]
[359997739,1746472240762,-165.179841,0.00027321,7]
[359997741,1746472240773,-189.6811501,0.00027397,120]
[359997743,1746472240783,-357.148596,0.00027397,2]
[359997745,1746472240792,-1641.47386708,0.00027486,17]
[359997747,1746472240802,-500.0,0.00027598,5]
[359997749,1746472240811,-166.1123423,0.00027863,2]
[359997751,1746472240821,-25101.2943293,0.00027978,2]
[359997753,1746472240831,-200.91653079,0.00028,5]
[359997755,1746472240840,-313.81875325,0.00028,10]
[359997757,1746472240849,-1641.47386708,0.00028003,18]
[359997759,1746472240859,-587.0,0.00028052,2]
[359997761,1746472240868,-587.0,0.00028053,2]
[359997763,1746472240878,-2351.0,0.00028311,2]
[359997765,1746472240887,-1490.0687728,0.00028494,2]
[359997767,1746472240896,-1641.47386708,0.00028521,19]
[359997769,1746472240905,-10924.7931846,0.00028757,2]
[359997771,1746472240915,-635.43451999,0.00028757,2]
[359997773,1746472240924,-629.86149274,0.00028767,5]
[359997775,1746472240934,-5811.13987871,0.00028783,2]
[359997777,1746472240943,-1641.47386708,0.00029038,20]
[359997779,1746472240951,-500.0,0.00029051,5]
[359997781,1746472240961,-291.470713,0.00029102,2]
[359997783,1746472240971,-151.0,0.00029141,7]
[359997785,1746472240981,-165.179841,0.00029141,7]
[359997787,1746472240990,-165.179841,0.00029141,7]
[359997789,1746472240999,-1002.92964946,0.00029352,5]
[359997791,1746472241009,-650.89891265,0.00029352,5]
[359997793,1746472241018,-1000.0,0.00029352,5]
[359997795,1746472241027,-1000.0,0.00029352,5]
[359997797,1746472241037,-1000.0,0.00029352,5]
[359997799,1746472241047,-500.0,0.00029352,5]
[359997801,1746472241057,-507.49178017,0.00029352,5]
[359997803,1746472241066,-1000.0,0.00029352,5]
[359997805,1746472241076,-1000.0,0.00029379,5]
[359997808,1746472241085,-500.0,0.00029379,5]
[359997809,1746472241094,-160.0,0.0002947,2]
[359997812,1746472241104,-1641.47386708,0.00029555,21]
[359997814,1746472241114,-160.0,0.00029566,2]
[359997816,1746472241124,-160.0,0.00029566,2]
[359997818,1746472241133,-421.83547488,0.00029566,2]
[359997821,1746472241149,-841.77443764,0.00029566,2]
[359997823,1746472241163,-182.23035355,0.00029566,2]
[359997825,1746472241173,-160.0,0.00029566,2]
[359997827,1746472241184,-160.0,0.00029566,2]
[359997829,1746472241194,-327.5295806,0.00029611,2]
[359997831,1746472241204,-200.0,0.000298,120]
[359997834,1746472241214,-273.71871448,0.00029892,5]
[359997836,1746472241224,-1000.0,0.00029892,5]
[359997838,1746472241234,-1000.0,0.00029892,2]
[359997840,1746472241245,-1000.0,0.00030022,5]
[359997842,1746472241255,-1000.0,0.00030046,5]
[359997844,1746472241264,-1000.0,0.00030046,5]
[359997846,1746472241274,-1641.47386708,0.00030072,22]
[359997848,1746472241284,-405.74292287,0.00030137,60]
[359997850,1746472241293,-823.0,0.00030426,2]
[359997852,1746472241303,-823.0,0.00030427,2]
[359997854,1746472241314,-500.0,0.00030503,5]
[359997856,1746472241323,-1641.47386708,0.0003059,23]
[359997858,1746472241333,-5811.13987871,0.00030775,2]
[359997860,1746472241343,-2098.0,0.00030848,2]
[359997862,1746472241354,-1582.64937728,0.0003089,2]
[359997864,1746472241364,-151.0,0.00030892,2]
[359997866,1746472241373,-207.4,0.00030892,2]
[359997869,1746472241383,-151.0,0.0003098,7]
[359997871,1746472241393,-10924.7931846,0.0003098,2]
[359997873,1746472241402,-635.43451999,0.0003098,2]
[359997875,1746472241412,-1641.47386708,0.00031107,24]
[359997877,1746472241422,-500.0,0.00031233,2]
[359997879,1746472241432,-615.87836199,0.00031269,2]
[359997881,1746472241442,-176.250222,0.0003134,7]
[359997883,1746472241451,-165.179841,0.0003134,7]
[359997885,1746472241461,-165.179841,0.0003134,7]
[359997887,1746472241470,-10924.7931846,0.0003139,2]
[359997889,1746472241481,-635.43451999,0.0003139,2]
[359997891,1746472241491,-29100.2903511,0.000314,30]
[359997893,1746472241501,-12607.13495863,0.000314,30]
[359997895,1746472241511,-160.0,0.000314,30]
[359997898,1746472241521,-200.0,0.000315,120]
[359997900,1746472241531,-1641.47386708,0.00031624,25]
[359997902,1746472241541,-1800.0,0.000317,4]
[359997904,1746472241551,-615.87836199,0.00031733,2]
[359997906,1746472241560,-165.179841,0.0003177,7]
[359997908,1746472241570,-165.179841,0.0003177,7]
[359997910,1746472241580,-615.87836199,0.00031871,2]
[359997912,1746472241590,-3161.0009,0.00032,7]
[359997914,1746472241600,-500.0,0.00032028,5]
[359997916,1746472241609,-1641.47386708,0.00032141,26]
[359997918,1746472241619,-615.87836199,0.00032248,2]
[359997920,1746472241628,-215.0738,0.00032261,2]
[359997922,1746472241638,-151.0,0.000323,11]
[359997925,1746472241649,-1000.0,0.00032329,2]
[359997927,1746472241659,-615.87836199,0.00032419,2]
[359997929,1746472241668,-291.470713,0.00032526,2]
[359997931,1746472241678,-165.179841,0.000326,7]
[359997933,1746472241687,-165.179841,0.000326,7]
[359997935,1746472241697,-1700.0,0.000326,4]
[359997937,1746472241706,-1641.47386708,0.00032659,27]
[359997939,1746472241716,-10924.7931846,0.00032698,2]
[359997941,1746472241727,-635.43451999,0.00032698,2]
[359997943,1746472241739,-151.0,0.00032708,7]
[359997945,1746472241749,-186.219661,0.00032708,7]
[359997947,1746472241759,-151.0,0.00032708,7]
[359997949,1746472241769,-151.0,0.00032708,7]
[359997951,1746472241780,-151.0,0.00032708,7]
[359997953,1746472241789,-151.0,0.00032708,7]
[359997955,1746472241799,-817.155121,0.00032708,2]
[359997957,1746472241810,-817.155121,0.00032708,2]
[359997959,1746472241820,-151.0,0.00032708,7]
[359997961,1746472241830,-154.669196,0.00032708,7]
[359997963,1746472241840,-151.0,0.00032708,7]
[359997965,1746472241850,-151.0,0.00032708,7]
[359997967,1746472241859,-151.0,0.00032708,7]
[359997970,1746472241869,-151.0,0.00032708,7]
[359997972,1746472241879,-151.0,0.00032708,7]
[359997974,1746472241888,-151.0,0.00032708,7]
[359997976,1746472241898,-151.0,0.00032708,7]
[359997977,1746472241907,-87398.3454771,0.00032708,2]
[359997979,1746472241916,-5083.47615992,0.00032708,2]
[359997981,1746472241926,-160.0,0.00032717,10]
[359997983,1746472241936,-151.0,0.00032718,7]
[359997986,1746472241946,-151.0,0.00032718,7]
[359997988,1746472241956,-153.272162,0.00032718,2]
[359997990,1746472241965,-151.0,0.00032718,7]
[359997992,1746472241976,-153.272162,0.00032718,2]
[359997994,1746472241985,-151.0,0.00032718,7]
[359997996,1746472241995,-151.000001,0.00032718,7]
[359997998,1746472242004,-151.287481,0.00032718,7]
[359998000,1746472242013,-151.0,0.00032718,7]
[359998002,1746472242023,-178.905606,0.00032718,7]
[359998004,1746472242032,-151.0,0.00032718,7]
[359998006,1746472242042,-151.0,0.00032718,7]
[359998008,1746472242052,-326.939024,0.00032718,7]
[359998010,1746472242061,-326.939024,0.00032718,7]
[359998012,1746472242071,-151.0,0.00032718,7]
[359998014,1746472242080,-151.0,0.00032718,7]
[359998016,1746472242089,-151.0,0.00032718,7]
[359998018,1746472242098,-156.92106,0.00032718,7]
[359998020,1746472242108,-1216.436538,0.00032718,7]
[359998022,1746472242118,-1216.436538,0.00032718,7]
[359998024,1746472242128,-151.0,0.00032718,7]
[359998026,1746472242138,-817.155121,0.00032718,2]
[359998028,1746472242148,-817.155121,0.00032718,2]
[359998030,1746472242158,-151.0,0.00032718,7]
[359998033,1746472242168,-151.0,0.00032718,7]
[359998035,1746472242177,-151.0,0.00032718,7]
[359998037,1746472242186,-151.0,0.00032718,7]
[359998039,1746472242195,-151.0,0.00032718,7]
[359998041,1746472242204,-151.0,0.00032718,7]
[359998043,1746472242214,-151.0,0.00032718,7]
[359998045,1746472242224,-370000.0,0.00032718,2]
[359998047,1746472242235,-300.60704227,0.00032756,2]
[359998049,1746472242246,-5811.13987871,0.00032766,2]
[359998051,1746472242255,-10924.7931846,0.0003279,2]
[359998053,1746472242264,-635.43451999,0.0003279,2]
[359998055,1746472242274,-841.77443764,0.000328,7]
[359998057,1746472242283,-12607.13495863,0.000328,7]
[359998059,1746472242293,-160.0,0.000328,7]
[359998061,1746472242302,-4930.0,0.00032817,2]
[359998063,1746472242312,-7412.7397981,0.00032818,2]
[359998065,1746472242322,-10924.7931846,0.00032856,2]
[359998067,1746472242331,-635.43451999,0.00032856,2]
[359998069,1746472242341,-635.43451999,0.00032866,2]
[359998071,1746472242351,-151.0,0.00032866,7]
[359998073,1746472242360,-151.0,0.00032866,7]
[359998075,1746472242370,-151.0,0.00032866,7]
[359998077,1746472242380,-151.0,0.00032866,7]
[359998079,1746472242390,-817.155121,0.00032866,2]
[359998081,1746472242400,-817.155121,0.00032866,2]
[359998083,1746472242410,-151.0,0.00032866,7]
[359998085,1746472242419,-151.0,0.00032866,7]
[359998087,1746472242429,-151.0,0.00032866,7]
[359998089,1746472242438,-151.0,0.00032866,7]
[359998091,1746472242447,-151.0,0.00032866,7]
[359998093,1746472242457,-151.0,0.00032866,7]
[359998095,1746472242467,-151.0,0.00032866,7]
[359998097,1746472242477,-500.0,0.00032873,5]
[359998099,1746472242486,-500.0,0.00032873,5]
[359998102,1746472242496,-500.0,0.00032873,5]
[359998104,1746472242506,-500.0,0.00032873,5]
[359998106,1746472242516,-300.2382317,0.00032873,5]
[359998109,1746472242526,-500.0,0.00032873,5]
[359998110,1746472242536,-500.0,0.00032873,5]
[359998112,1746472242545,-500.0,0.00032873,5]
[359998114,1746472242555,-500.0,0.00032873,5]
[359998118,1746472242565,-500.0,0.00032873,5]
[359998121,1746472242575,-500.0,0.00032873,5]
[359998123,1746472242585,-500.0,0.00032873,5]
[359998125,1746472242594,-500.0,0.00032873,5]
[359998127,1746472242604,-500.921792,0.00032873,5]
[359998129,1746472242613,-150.0,0.00032873,5]
[359998131,1746472242622,-500.0,0.00032873,5]
[359998133,1746472242632,-500.0,0.00032873,5]
[359998135,1746472242641,-500.0,0.00032873,5]
[359998137,1746472242651,-500.0,0.00032873,5]
[359998139,1746472242661,-500.0,0.00032873,5]
[359998141,1746472242671,-500.0,0.00032873,5]
[359998143,1746472242681,-500.0,0.00032873,5]
[359998145,1746472242691,-500.0,0.00032873,5]
[359998147,1746472242700,-500.0,0.00032873,5]
[359998149,1746472242709,-500.0,0.00032873,5]
[359998151,1746472242719,-500.0,0.00032873,5]
[359998154,1746472242732,-500.0,0.00032873,5]
[359998156,1746472242742,-500.0,0.00032873,5]
[359998159,1746472242751,-500.84072205,0.00032873,3]
[359998162,1746472242760,-500.0,0.00032873,5]
[359998165,1746472242769,-500.0,0.00032873,5]
[359998167,1746472242780,-501.91534911,0.00032873,5]
[359998171,1746472242790,-501.10727872,0.00032873,5]
[359998173,1746472242800,-500.0,0.00032873,5]
[359998175,1746472242809,-500.0,0.00032873,5]
[359998177,1746472242819,-500.0,0.00032873,5]
[359998179,1746472242828,-501.19080263,0.00032875,2]
[359998181,1746472242839,-172.89711998,0.00032875,10]
[359998183,1746472242849,-91836.49571257,0.00032876,2]
[359998189,1746472242897,-6532.77245372,0.00032876,2]
[359998191,1746472242907,-22108.38851291,0.00032876,3]
[359998193,1746472242917,-400.0,0.00032876,8]
[359998195,1746472242927,-400.0,0.00032876,8]
[359998197,1746472242937,-165.179841,0.00032876,7]
[359998199,1746472242947,-165.179841,0.00032876,7]
[359998201,1746472242957,-165.179841,0.00032876,7]
[359998203,1746472242965,-165.179841,0.00032876,7]
[359998205,1746472242975,-165.179841,0.00032876,7]
[359998207,1746472242985,-165.179841,0.00032876,7]
[359998209,1746472242994,-165.179841,0.00032876,7]
[359998211,1746472243004,-165.17984,0.00032876,7]
[359998213,1746472243013,-151.0,0.00032876,7]
[359998215,1746472243023,-151.0,0.00032876,7]
[359998217,1746472243032,-500.0,0.00032876,8]
[359998219,1746472243042,-151.0,0.00032876,7]
[359998221,1746472243051,-160.0,0.00032876,7]
[359998223,1746472243061,-156.869992,0.00032876,7]
[359998225,1746472243071,-151.0,0.00032876,7]
[359998227,1746472243081,-151.0,0.00032876,7]
[359998229,1746472243091,-151.0,0.00032876,7]
[359998231,1746472243101,-151.0,0.00032876,7]
[359998233,1746472243110,-151.0,0.00032876,7]
[359998235,1746472243119,-153.49358,0.00032876,7]
[359998236,1746472243128,-151.0,0.00032876,7]
[359998237,1746472243137,-151.0,0.00032876,7]
[359998238,1746472243146,-151.0,0.00032876,7]
[359998239,1746472243155,-400.0,0.00032876,8]
[359998240,1746472243164,-206.10300439,0.00032876,8]
[359998241,1746472243173,-500.0,0.00032876,8]
[359998242,1746472243182,-980.18,0.00032876,8]
[359998243,1746472243192,-474.245069,0.00032876,7]
[359998244,1746472243201,-474.245069,0.00032876,7]
[359998245,1746472243210,-474.245069,0.00032876,7]
[359998246,1746472243219,-474.245069,0.00032876,7]
[359998247,1746472243229,-474.245069,0.00032876,7]
[359998248,1746472243239,-474.245069,0.00032876,7]
[359998249,1746472243248,-474.245069,0.00032876,7]
[359998251,1746472243258,-474.245069,0.00032876,7]
[359998253,1746472243267,-151.0,0.00032876,7]
[359998255,1746472243276,-151.0,0.00032876,7]
[359998257,1746472243286,-151.0,0.00032876,7]
[359998259,1746472243295,-278.497364,0.00032876,7]
[359998261,1746472243304,-400.0,0.00032876,8]
[359998263,1746472243314,-400.0,0.00032876,8]
[359998265,1746472243323,-400.0,0.00032876,8]
[359998267,1746472243332,-400.0,0.00032876,8]
[359998290,1746472243342,-510.25983312,0.00032876,8]
[359998299,1746472243523,-400.0,0.00032876,8]
[359998301,1746472243533,-400.0,0.00032876,8]
[359998303,1746472243543,-400.0,0.00032876,8]
[359998305,1746472243552,-400.51914964,0.00032876,8]
[359998307,1746472243561,-400.0,0.00032876,8]
[359998309,1746472243570,-400.0,0.00032876,8]
[359998311,1746472243579,-157.88394426,0.00032876,8]
[359998313,1746472243588,-400.0,0.00032876,8]
[359998315,1746472243597,-504.4718993,0.00032876,8]
[359998317,1746472243607,-506.06089301,0.00032876,8]
[359998319,1746472243617,-400.0,0.00032876,8]
[359998321,1746472243627,-151.0,0.00032876,7]
[359998323,1746472243636,-151.0,0.00032876,7]
[359998325,1746472243645,-151.0,0.00032876,7]
[359998327,1746472243654,-151.0,0.00032876,7]
[359998329,1746472243663,-400.0,0.00032876,8]
[359998331,1746472243672,-400.0,0.00032876,8]
[359998333,1746472243682,-400.0,0.00032876,8]
[359998335,1746472243692,-501.38841628,0.00032876,8]
[359998337,1746472243702,-400.0,0.00032876,8]
[359998339,1746472243712,-501.78154017,0.00032876,8]
[359998341,1746472243721,-400.0,0.00032876,8]
[359998343,1746472243736,-400.0,0.00032876,8]
[359998345,1746472243747,-400.0,0.00032876,8]
[359998347,1746472243756,-186.79082279,0.00032876,8]
[359998349,1746472243766,-526.95055878,0.00032876,8]
[359998351,1746472243776,-400.0,0.00032876,8]
[359998353,1746472243786,-500.0,0.00032876,8]
[359998355,1746472243795,-692.52,0.00032876,8]
[359998357,1746472243805,-214.4004236,0.00032876,8]
[359998359,1746472243814,-400.0,0.00032876,8]
[359998361,1746472243823,-400.0,0.00032876,8]
[359998363,1746472243833,-400.0,0.00032876,8]
[359998365,1746472243842,-400.0,0.00032876,8]
[359998367,1746472243852,-400.0,0.00032876,8]
[359998369,1746472243862,-400.0,0.00032876,8]
[359998371,1746472243871,-400.0,0.00032876,8]
[359998373,1746472243880,-400.0,0.00032876,8]
[359998375,1746472243889,-403.96761852,0.00032876,8]
[359998377,1746472243899,-400.0,0.00032876,8]
[359998379,1746472243907,-400.0,0.00032876,2]
[359998381,1746472243917,-400.0,0.00032876,8]
[359998383,1746472243926,-515.58542781,0.00032876,8]
[359998385,1746472243935,-400.0,0.00032876,8]
[359998387,1746472243944,-400.0,0.00032876,8]
[359998389,1746472243953,-400.0,0.00032876,8]
[359998391,1746472243963,-400.0,0.00032876,8]
[359998393,1746472243972,-400.0,0.00032876,8]
[359998395,1746472243982,-400.0,0.00032876,8]
[359998397,1746472243991,-400.0,0.00032876,8]
[359998399,1746472244000,-400.0,0.00032876,8]
[359998401,1746472244011,-400.0,0.00032876,8]
[359998403,1746472244020,-400.0,0.00032876,8]
[359998405,1746472244030,-1403.17,0.00032876,8]
[359998407,1746472244039,-400.0,0.00032876,8]
[359998409,1746472244048,-400.0,0.00032876,8]
[359998411,1746472244058,-400.0,0.00032876,8]
[359998413,1746472244068,-200.0,0.00032876,8]
[359998415,1746472244078,-400.0,0.00032876,8]
[359998417,1746472244087,-400.0,0.00032876,8]
[359998419,1746472244097,-400.0,0.00032876,8]
[359998421,1746472244106,-400.0,0.00032876,8]
[359998423,1746472244115,-400.0,0.00032876,8]
[359998425,1746472244125,-400.0,0.00032876,8]
[359998427,1746472244134,-211.43298111,0.00032876,8]
[359998429,1746472244144,-400.0,0.00032876,8]
[359998431,1746472244153,-400.0,0.00032876,8]
[359998433,1746472244163,-511.54472949,0.00032876,8]
[359998435,1746472244172,-400.0,0.00032876,8]
[359998437,1746472244181,-943.31,0.00032876,8]
[359998439,1746472244191,-400.0,0.00032876,8]
[359998442,1746472244200,-400.0,0.00032876,8]
[359998444,1746472244209,-400.0,0.00032876,8]
[359998446,1746472244218,-513.05568798,0.00032876,8]
[359998448,1746472244228,-400.0,0.00032876,8]
[359998450,1746472244239,-400.0,0.00032876,8]
[359998452,1746472244249,-480.53,0.00032876,8]
[359998454,1746472244259,-516.1151743,0.00032876,8]
[359998456,1746472244268,-400.0,0.00032876,8]
[359998458,1746472244277,-401.37635423,0.00032876,8]
[359998460,1746472244287,-400.0,0.00032876,8]
[359998462,1746472244295,-400.0,0.00032876,8]
[359998464,1746472244305,-507.954413,0.00032876,7]
[359998466,1746472244314,-507.954413,0.00032876,7]
[359998468,1746472244323,-507.954413,0.00032876,7]
[359998469,1746472244333,-507.954413,0.00032876,7]
[359998472,1746472244344,-400.0,0.00032876,8]
[359998474,1746472244353,-507.954413,0.00032876,7]
[359998476,1746472244363,-507.954413,0.00032876,7]
[359998478,1746472244372,-507.954413,0.00032876,7]
[359998480,1746472244382,-507.954413,0.00032876,7]
[359998482,1746472244391,-400.0,0.00032876,8]
[359998484,1746472244401,-400.0,0.00032876,8]
[359998485,1746472244410,-400.0,0.00032876,8]
[359998487,1746472244420,-500.0,0.00032876,8]
[359998489,1746472244429,-400.0,0.00032876,8]
[359998492,1746472244439,-400.0,0.00032876,8]
[359998494,1746472244448,-512.28050981,0.00032876,8]
[359998496,1746472244458,-1000.0,0.00032876,8]
[359998498,1746472244467,-485.9620042,0.00032876,8]
[359998500,1746472244476,-400.0,0.00032876,8]
[359998502,1746472244485,-400.0,0.00032876,8]
[359998503,1746472244494,-400.0,0.00032876,8]
[359998505,1746472244503,-400.0,0.00032876,8]
[359998507,1746472244513,-400.0,0.00032876,8]
[359998510,1746472244523,-400.0,0.00032876,8]
[359998511,1746472244532,-400.0,0.00032876,8]
[359998513,1746472244541,-200.07702048,0.00032876,8]
[359998516,1746472244551,-700.0,0.00032876,120]
[359998517,1746472244560,-700.0,0.00032876,120]
[359998520,1746472244570,-700.0,0.00032876,120]
[359998522,1746472244579,-700.0,0.00032876,120]
[359998524,1746472244589,-700.0,0.00032876,120]
[359998526,1746472244598,-700.0,0.00032876,120]
[359998528,1746472244608,-700.0,0.00032876,120]
[359998530,1746472244617,-700.0,0.00032876,120]
[359998532,1746472244627,-700.0,0.00032876,120]
[359998533,1746472244636,-700.0,0.00032876,120]
[359998536,1746472244646,-400.0,0.00032876,8]
[359998538,1746472244655,-400.0,0.00032876,8]
[359998540,1746472244665,-700.0,0.00032876,120]
[359998542,1746472244673,-400.0,0.00032876,8]
[359998544,1746472244683,-312.40137955,0.00032876,120]
[359998546,1746472244692,-409.56,0.00032876,8]
[359998548,1746472244701,-400.0,0.00032876,8]
[359998550,1746472244710,-400.0,0.00032876,2]
[359998552,1746472244720,-400.0,0.00032876,8]
[359998554,1746472244735,-400.0,0.00032876,8]
[359998556,1746472244745,-469.96639291,0.00032876,8]
[359998558,1746472244755,-400.0,0.00032876,8]
[359998560,1746472244765,-163.77125305,0.00032876,8]
[359998562,1746472244774,-400.0,0.00032876,8]
[359998564,1746472244783,-400.0,0.00032876,8]
[359998566,1746472244793,-400.0,0.00032876,8]
[359998568,1746472244802,-400.0,0.00032876,8]
[359998570,1746472244812,-151.0,0.00032876,7]
[359998572,1746472244821,-153.443817,0.00032876,7]
[359998574,1746472244830,-151.0,0.00032876,7]
[359998576,1746472244839,-151.0,0.00032876,7]
[359998578,1746472244853,-151.0,0.00032876,7]
[359998580,1746472244862,-151.0,0.00032876,7]
[359998582,1746472244872,-400.0,0.00032876,8]
[359998584,1746472244881,-522.85,0.00032876,8]
[359998586,1746472244891,-405.35599822,0.00032876,8]
[359998588,1746472244900,-500.0,0.00032876,8]
[359998591,1746472244910,-153.272162,0.00032876,2]
[359998593,1746472244920,-153.272162,0.00032876,2]
[359998595,1746472244931,-153.272162,0.00032876,2]
[359998597,1746472244941,-153.272162,0.00032876,2]
[359998599,1746472244951,-400.0,0.00032876,8]
[359998601,1746472244960,-153.272162,0.00032876,2]
[359998603,1746472244969,-400.0,0.00032876,8]
[359998605,1746472244979,-400.0,0.00032876,8]
[359998607,1746472244988,-280.29936029,0.00032876,8]
[359998609,1746472244997,-151.0,0.00032876,7]
[359998611,1746472245007,-400.0,0.00032876,8]
[359998613,1746472245017,-151.0,0.00032876,7]
[359998615,1746472245027,-202.886355,0.00032876,7]
[359998617,1746472245037,-153.272162,0.00032876,2]
[359998619,1746472245046,-400.0,0.00032876,8]
[359998621,1746472245056,-153.272162,0.00032876,2]
[359998623,1746472245066,-153.272162,0.00032876,2]
[359998625,1746472245075,-153.272162,0.00032876,2]
[359998627,1746472245085,-400.0,0.00032876,8]
[359998629,1746472245095,-153.272162,0.00032876,2]
[359998631,1746472245105,-199.64593122,0.00032876,8]
[359998633,1746472245114,-400.0,0.00032876,8]
[359998635,1746472245124,-403.12327759,0.00032876,8]
[359998637,1746472245133,-400.0,0.00032876,8]
[359998639,1746472245143,-400.0,0.00032876,8]
[359998641,1746472245152,-517.53,0.00032876,8]
[359998643,1746472245163,-400.0,0.00032876,8]
[359998645,1746472245172,-400.0,0.00032876,8]
[359998648,1746472245182,-412.27648471,0.00032876,8]
[359998650,1746472245191,-400.0,0.00032876,8]
[359998652,1746472245201,-400.0,0.00032876,8]
[359998654,1746472245210,-400.0,0.00032876,8]
[359998656,1746472245219,-201.93141834,0.00032876,8]
[359998658,1746472245229,-400.0,0.00032876,8]
[359998660,1746472245239,-216.69010859,0.00032876,8]
[359998662,1746472245248,-400.0,0.00032876,8]
[359998664,1746472245258,-400.0,0.00032876,8]
[359998666,1746472245268,-400.0,0.00032876,8]
[359998668,1746472245278,-400.0,0.00032876,8]
[359998670,1746472245287,-400.0,0.00032876,8]
[359998672,1746472245298,-400.0,0.00032876,8]
[359998674,1746472245307,-400.0,0.00032876,8]
[359998676,1746472245316,-400.0,0.00032876,8]
[359998678,1746472245327,-400.0,0.00032876,8]
[359998680,1746472245336,-400.0,0.00032876,8]
[359998682,1746472245346,-400.0,0.00032876,8]
[359998684,1746472245355,-400.0,0.00032876,8]
[359998686,1746472245366,-620.8,0.00032876,8]
[359998688,1746472245375,-400.0,0.00032876,8]
[359998690,1746472245385,-400.0,0.00032876,8]
[359998692,1746472245394,-402.66919914,0.00032876,8]
[359998694,1746472245404,-400.0,0.00032876,8]
[359998696,1746472245414,-400.0,0.00032876,8]
[359998698,1746472245424,-548.79371066,0.00032876,8]
[359998700,1746472245434,-157.375963,0.00032876,7]
[359998702,1746472245444,-400.0,0.00032876,8]
[359998704,1746472245453,-400.0,0.00032876,8]